fUST/lending_fUST_20250913
["ID","MTS","AMOUNT","RATE_DAILY","PERIOD"]
[385305437,1757755925086,-480.0,0.00028767,3]
[385305438,1757755925100,-491.55624411,0.00028767,3]
[385305439,1757755925115,-480.0,0.00028767,3]
[385305440,1757755925128,-409.46092693,0.00028767,3]
[385305441,1757755925142,-537.4,0.00028767,3]
[385305442,1757755925155,-606.47,0.00028767,3]
[385305443,1757755925169,-627.39,0.00028767,3]
[385305444,1757755925182,-480.0,0.00028767,3]
[385305445,1757755925197,-515.6,0.00028767,3]
[385305446,1757755925210,-480.0,0.00028767,3]
[385305447,1757755925224,-480.0,0.00028767,3]
[385305448,1757755925237,-480.0,0.00028767,3]
[385305449,1757755925251,-480.0,0.00028767,3]
[385305450,1757755925267,-657.1,0.00028767,7]
[385305451,1757755925280,-4289.53,0.00028767,3]
[385305452,1757755925294,-480.0,0.00028767,3]
[385305453,1757755925307,-615.59,0.00028767,3]
[385305454,1757755925322,-1017.38,0.00028767,3]
[385305455,1757755925335,-480.0,0.00028767,3]
[385305456,1757755925348,-480.0,0.00028767,3]
[385305457,1757755925362,-480.0,0.00028767,3]
[385305458,1757755925375,-480.0,0.00028767,3]
[385305459,1757755925388,-480.0,0.00028767,3]
[385305460,1757755925402,-480.0,0.00028767,3]
[385305461,1757755925415,-480.0,0.00028767,3]
[385305462,1757755925428,-480.0,0.00028767,3]
[385305463,1757755925442,-480.0,0.00028767,3]
[385305464,1757755925455,-480.0,0.00028767,3]
[385305465,1757755925469,-480.0,0.00028767,3]
[385305466,1757755925482,-480.0,0.00028767,3]
[385305467,1757755925498,-302.04358483,0.00028767,3]
[385305468,1757755925709,-480.0,0.00028767,3]
[385305469,1757755925729,-480.0,0.00028767,3]
[385305470,1757755925739,-480.0,0.00028767,3]
[385305471,1757755925748,-485.55,0.00028767,3]
[385305472,1757755925757,-480.0,0.00028767,3]
[385305473,1757755925767,-480.0,0.00028767,3]
[385305474,1757755925776,-505.27,0.00028767,3]
[385305475,1757755925786,-480.0,0.00028767,3]
[385305476,1757755925796,-480.0,0.00028767,3]
[385305477,1757755925806,-480.0,0.00028767,3]
[385305478,1757755925816,-480.0,0.00028767,3]
[385305479,1757755925825,-480.0,0.00028767,3]
[385305480,1757755925834,-480.0,0.00028767,3]
[385305481,1757755925843,-480.0,0.00028767,3]
[385305482,1757755925852,-728.96,0.00028767,3]
[385305483,1757755925862,-480.0,0.00028767,3]
[385305484,1757755925871,-480.0,0.00028767,3]
[385305485,1757755925880,-508.85,0.00028767,3]
[385305486,1757755925889,-503.64,0.00028767,3]
[385305487,1757755925899,-886.0,0.00028767,3]
[385305488,1757755925908,-480.0,0.00028767,3]
[385305489,1757755925917,-480.0,0.00028767,3]
[385305490,1757755925926,-605.6,0.00028767,3]
[385305491,1757755925935,-480.0,0.00028767,3]
[385305492,1757755925947,-1273.7,0.00028767,3]
[385305493,1757755925956,-576.34,0.00028767,3]
[385305494,1757755925965,-480.0,0.00028767,3]
[385305495,1757755925975,-480.0,0.00028767,3]
[385305496,1757755925984,-480.0,0.00028767,3]
[385305497,1757755925994,-480.0,0.00028767,3]
[385305498,1757755926003,-480.0,0.00028767,3]
[385305499,1757755926013,-531.61,0.00028767,3]
[385305500,1757755926022,-576.19,0.00028767,3]
[385305501,1757755926031,-480.0,0.00028767,3]
[385305502,1757755926041,-489.71,0.00028767,3]
[385305503,1757755926051,-1700.77,0.00028767,3]
[385305504,1757755926061,-480.0,0.00028767,3]
[385305505,1757755926070,-683.52,0.00028767,3]
[385305506,1757755926079,-532.68,0.00028767,3]
[385305507,1757755926088,-877.42,0.00028767,3]
[385305508,1757755926098,-2036.55,0.00028767,3]
[385305509,1757755926107,-179.77749684,0.00028767,3]
[385305510,1757755926118,-480.0,0.00028767,3]
[385305511,1757755926127,-675.8,0.00028767,3]
[385305512,1757755926136,-302.10346219,0.00028767,3]
[385305513,1757755926148,-1092.94,0.00028767,3]
[385305514,1757755926158,-864.33,0.00028767,3]
[385305515,1757755926168,-506.75794861,0.00028767,3]
[385305516,1757755926178,-480.0,0.00028767,3]
[385305517,1757755926189,-378.09281489,0.00028767,3]
[385305518,1757755926199,-7300.91,0.00028767,3]
[385305519,1757755926208,-480.0,0.00028767,3]
[385305520,1757755926218,-1623.88,0.00028767,3]
[385305521,1757755926228,-500.0,0.00028767,6]
[385305522,1757755926237,-480.0,0.00028767,3]
[385305523,1757755926247,-1080.81,0.00028767,3]
[385305524,1757755926256,-480.0,0.00028767,3]
[385305525,1757755926270,-480.0,0.00028767,3]
[385305526,1757755926279,-480.0,0.00028767,3]
[385305527,1757755926288,-480.0,0.00028767,3]
[385305528,1757755926298,-549.3653416,0.00028767,3]
[385305529,1757755926309,-586.32,0.00028767,3]
[385305530,1757755926319,-866.22,0.00028767,3]
[385305531,1757755926328,-585.1,0.00028767,3]
[385305532,1757755926339,-4460.51,0.00028767,3]
[385305533,1757755926348,-774.68,0.00028767,3]
[385305534,1757755926357,-480.0,0.00028767,3]
[385305535,1757755926367,-597.16,0.00028767,3]
[385305536,1757755926376,-11885.11,0.00028767,3]
[385305537,1757755926386,-829.91,0.00028767,3]
[385305538,1757755926395,-646.07,0.00028767,3]
[385305539,1757755926405,-490.24,0.00028767,3]
[385305540,1757755926419,-500.7,0.00028767,3]
[385305541,1757755926429,-891.22,0.00028767,3]
[385305542,1757755926440,-1033.36,0.00028767,3]
[385305543,1757755926449,-534.4,0.00028767,3]
[385305544,1757755926459,-541.98,0.00028767,3]
[385305545,1757755926468,-977.05,0.00028767,3]
[385305546,1757755926477,-681.35,0.00028767,3]
[385305547,1757755926487,-480.0,0.00028767,3]
[385305548,1757755926497,-480.0,0.00028767,3]
[385305549,1757755926505,-1465.92111742,0.00028767,120]
[385305550,1757755926514,-480.0,0.00028767,3]
[385305551,1757755926524,-579.86,0.00028767,3]
[385305552,1757755926533,-480.0,0.00028767,3]
[385305553,1757755926543,-6737.45,0.00028767,3]
[385305554,1757755926552,-2411.48,0.00028767,3]
[385305555,1757755926562,-4800.05,0.00028767,3]
[385305556,1757755926571,-480.0,0.00028767,3]
[385305557,1757755926580,-480.0,0.00028767,3]
[385305558,1757755926589,-1662.72,0.00028767,3]
[385305559,1757755926599,-836.54,0.00028767,3]
[385305560,1757755926608,-1708.68,0.00028767,3]
[385305561,1757755926618,-233.50140537,0.00028767,3]
[385305562,1757755926627,-619.88,0.00028767,3]
[385305563,1757755926637,-1393.21,0.00028767,3]
[385305564,1757755926646,-1863.52,0.00028767,3]
[385305565,1757755926655,-480.0,0.00028767,3]
[385305566,1757755926664,-1307.29,0.00028767,3]
[385305567,1757755926674,-489.28360376,0.00028767,3]
[385305568,1757755926683,-480.0,0.00028767,3]
[385305569,1757755926694,-528.66,0.00028767,3]
[385305570,1757755926703,-494.96,0.00028767,3]
[385305571,1757755926712,-1103.37,0.00028767,3]
[385305572,1757755926722,-518.27,0.00028767,3]
[385305573,1757755926731,-480.0,0.00028767,3]
[385305574,1757755926740,-516.82,0.00028767,3]
[385305575,1757755926749,-487.61,0.00028767,3]
[385305576,1757755926758,-832.35,0.00028767,3]
[385305577,1757755926766,-545.88063599,0.00028767,3]
[385305578,1757755926775,-480.0,0.00028767,3]
[385305579,1757755926784,-480.0,0.00028767,3]
[385305580,1757755926793,-1916.67,0.00028767,3]
[385305581,1757755926803,-659.4,0.00028767,3]
[385305582,1757755926812,-480.0,0.00028767,3]
[385305583,1757755926821,-480.0,0.00028767,3]
[385305584,1757755926830,-480.0,0.00028767,3]
[385305585,1757755926839,-480.0,0.00028767,3]
[385305586,1757755926848,-597.41,0.00028767,3]
[385305587,1757755926857,-480.0,0.00028767,3]
[385305588,1757755926867,-606.7,0.00028767,3]
[385305589,1757755926877,-3205.05,0.00028767,3]
[385305590,1757755926886,-480.0,0.00028767,3]
[385305591,1757755926895,-480.0,0.00028767,3]
[385305592,1757755926904,-477.19313585,0.00028767,3]
[385305593,1757755926914,-744.12,0.00028767,3]
[385305594,1757755926923,-200.10888635,0.00028767,5]
[385305595,1757755926932,-500.0,0.00028768,2]
[385305596,1757755926941,-1121.43,0.00028771,15]
[385305597,1757755926950,-800.0,0.00028792,2]
[385305598,1757755926959,-804.0,0.00028798,2]
[385305599,1757755926968,-168.69085998,0.000288,7]
[385305600,1757755926977,-155.0,0.00028802,2]
[385305601,1757755926986,-800.0,0.0002882,2]
[385305602,1757755926995,-154.6121,0.00028825,14]
[385305603,1757755927004,-800.0,0.00028825,2]
[385305604,1757755927014,-500.0,0.00028831,11]
[385305605,1757755927023,-500.0,0.00028831,11]
[385305606,1757755927033,-151.26,0.00028837,15]
[385305607,1757755927042,-800.0,0.00028838,2]
[385305608,1757755927051,-209.0,0.0002884,30]
[385305609,1757755927061,-31676.93873244,0.0002884,30]
[385305610,1757755927071,-800.0,0.0002887,2]
[385305611,1757755927080,-1121.43,0.00028871,15]
[385305612,1757755927089,-154.6121,0.00028882,2]
[385305613,1757755927099,-800.0,0.00028883,2]
[385305614,1757755927108,-729.38528535,0.00028907,2]
[385305615,1757755927117,-260.81301056,0.00028911,2]
[385305616,1757755927127,-800.0,0.00028917,2]
[385305617,1757755927136,-151.0,0.00028917,7]
[385305618,1757755927146,-800.0,0.00028929,2]
[385305619,1757755927155,-151.26,0.00028937,15]
[385305620,1757755927164,-800.0,0.0002894,2]
[385305621,1757755927174,-510.29754861,0.00028945,2]
[385305622,1757755927183,-800.0,0.00028957,2]
[385305623,1757755927194,-1121.43,0.00028971,15]
[385305624,1757755927203,-7349.97958061,0.0002899,2]
[385305625,1757755927213,-161.0,0.00029,60]
[385305626,1757755927222,-2000.0,0.00029,60]
[385305627,1757755927231,-1000.0,0.00029,29]
[385305628,1757755927242,-160.0,0.00029,30]
[385305629,1757755927251,-877.34064837,0.00029,2]
[385305630,1757755927260,-160.0,0.00029,30]
[385305631,1757755927274,-209.0,0.00029,2]
[385305632,1757755927284,-351.10368381,0.00029009,7]
[385305633,1757755927293,-2700.0,0.0002901,7]
[385305634,1757755927302,-154.6121,0.00029015,30]
[385305635,1757755927311,-500.0,0.00029015,2]
[385305636,1757755927321,-154.6121,0.0002903,10]
[385305637,1757755927331,-151.26,0.00029037,15]
[385305638,1757755927340,-40687.4109818,0.0002904,2]
[385305639,1757755927349,-1035.06,0.00029041,3]
[385305640,1757755927359,-480.0,0.00029041,3]
[385305641,1757755927368,-370.36523333,0.00029041,3]
[385305642,1757755927378,-480.0,0.00029041,3]
[385305643,1757755927387,-480.0,0.00029041,3]
[385305644,1757755927397,-338.52890437,0.00029041,3]
[385305645,1757755927406,-463.510681,0.00029041,3]
[385305646,1757755927415,-480.0,0.00029041,3]
[385305647,1757755927426,-480.0,0.00029041,3]
[385305648,1757755927435,-480.0,0.00029041,3]
[385305649,1757755927444,-480.0,0.00029041,3]
[385305650,1757755927454,-620.46137425,0.00029041,3]
[385305651,1757755927463,-480.0,0.00029041,3]
[385305652,1757755927472,-524.74285819,0.00029041,3]
[385305653,1757755927482,-480.0,0.00029041,3]
[385305654,1757755927491,-480.0,0.00029041,3]
[385305655,1757755927500,-480.0,0.00029041,3]
[385305656,1757755927510,-357.20211021,0.00029041,3]
[385305657,1757755927520,-480.0,0.00029041,3]
[385305658,1757755927531,-480.0,0.00029041,3]
[385305659,1757755927540,-480.0,0.00029041,3]
[385305660,1757755927550,-514.15381237,0.00029041,3]
[385305661,1757755927559,-480.0,0.00029041,3]
[385305662,1757755927568,-480.0,0.00029041,3]
[385305663,1757755927577,-499.1,0.00029041,3]
[385305664,1757755927587,-480.69,0.00029041,3]
[385305665,1757755927596,-480.0,0.00029041,3]
[385305666,1757755927605,-480.0,0.00029041,3]
[385305667,1757755927614,-519.58,0.00029041,3]
[385305668,1757755927623,-619.65,0.00029041,3]
[385305669,1757755927633,-183.85770538,0.00029041,3]
[385305670,1757755927641,-587.99,0.00029041,3]
[385305671,1757755927651,-480.0,0.00029041,3]
[385305672,1757755927660,-523.11,0.00029041,3]
[385305673,1757755927669,-653.04,0.00029041,3]
[385305674,1757755927678,-687.36,0.00029041,3]
[385305675,1757755927687,-264.8659026,0.00029041,3]
[385305676,1757755927697,-484.0,0.00029041,3]
[385305677,1757755927706,-480.0,0.00029041,3]
[385305678,1757755927716,-523.39,0.00029041,3]
[385305679,1757755927725,-480.0,0.00029041,3]
[385305680,1757755927735,-509.39,0.00029041,3]
[385305681,1757755927744,-480.0,0.00029041,3]
[385305682,1757755927754,-480.0,0.00029041,3]
[385305683,1757755927763,-480.0,0.00029041,3]
[385305684,1757755927772,-480.0,0.00029041,3]
[385305685,1757755927782,-392.99365713,0.00029041,3]
[385305686,1757755927791,-480.0,0.00029041,3]
[385305687,1757755927800,-480.0,0.00029041,3]
[385305688,1757755927809,-1336.28,0.00029041,3]
[385305689,1757755927819,-480.0,0.00029041,3]
[385305690,1757755927828,-480.0,0.00029041,3]
[385305691,1757755927837,-480.0,0.00029041,3]
[385305692,1757755927847,-480.0,0.00029041,3]
[385305693,1757755927856,-501.62,0.00029041,3]
[385305694,1757755927866,-480.0,0.00029041,3]
[385305695,1757755927875,-514.0,0.00029041,3]
[385305696,1757755927885,-480.0,0.00029041,3]
[385305697,1757755927894,-236.24076318,0.00029041,3]
[385305698,1757755927903,-537.4,0.00029041,3]
[385305699,1757755927914,-606.47,0.00029041,3]
[385305700,1757755927924,-627.39,0.00029041,3]
[385305701,1757755927933,-212.54880869,0.00029041,3]
[385305702,1757755927943,-515.6,0.00029041,3]
[385305703,1757755927952,-473.33670739,0.00029041,3]
[385305704,1757755927961,-480.0,0.00029041,3]
[385305705,1757755927971,-480.0,0.00029041,3]
[385305706,1757755927980,-480.0,0.00029041,3]
[385305707,1757755927989,-657.1,0.00029041,7]
[385305708,1757755927998,-4289.53,0.00029041,3]
[385305709,1757755928007,-480.0,0.00029041,3]
[385305710,1757755928016,-615.59,0.00029041,3]
[385305711,1757755928026,-1017.38,0.00029041,3]
[385305712,1757755928037,-480.0,0.00029041,3]
[385305713,1757755928046,-480.0,0.00029041,3]
[385305714,1757755928055,-194.81915179,0.00029041,3]
[385305715,1757755928064,-480.0,0.00029041,3]
[385305716,1757755928073,-217.44,0.00029041,3]
[385305717,1757755928083,-480.0,0.00029041,3]
[385305718,1757755928092,-480.0,0.00029041,3]
[385305719,1757755928102,-480.0,0.00029041,3]
[385305720,1757755928111,-331.94869223,0.00029041,3]
[385305721,1757755928121,-480.0,0.00029041,3]
[385305722,1757755928130,-480.0,0.00029041,3]
[385305723,1757755928139,-480.0,0.00029041,3]
[385305724,1757755928151,-480.0,0.00029041,3]
[385305725,1757755928160,-480.0,0.00029041,3]
[385305726,1757755928170,-480.0,0.00029041,3]
[385305727,1757755928179,-485.55,0.00029041,3]
[385305728,1757755928189,-480.0,0.00029041,3]
[385305729,1757755928199,-480.0,0.00029041,3]
[385305730,1757755928208,-505.27,0.00029041,3]
[385305731,1757755928218,-480.0,0.00029041,3]
[385305732,1757755928364,-480.0,0.00029041,3]
[385305733,1757755928376,-480.0,0.00029041,3]
[385305734,1757755928386,-480.0,0.00029041,3]
[385305735,1757755928395,-480.0,0.00029041,3]
[385305736,1757755928405,-499.14723004,0.00029041,3]
[385305737,1757755928415,-370.4128787,0.00029041,3]
[385305738,1757755928426,-728.96,0.00029041,3]
[385305739,1757755928436,-480.0,0.00029041,3]
[385305740,1757755928447,-480.0,0.00029041,3]
[385305741,1757755928456,-508.85,0.00029041,3]
[385305742,1757755928466,-503.64,0.00029041,3]
[385305743,1757755928475,-886.0,0.00029041,3]
[385305744,1757755928485,-480.0,0.00029041,3]
[385305745,1757755928494,-480.0,0.00029041,3]
[385305746,1757755928503,-605.6,0.00029041,3]
[385305747,1757755928514,-480.0,0.00029041,3]
[385305748,1757755928524,-1273.7,0.00029041,3]
[385305749,1757755928535,-576.34,0.00029041,3]
[385305750,1757755928545,-480.0,0.00029041,3]
[385305751,1757755928555,-480.0,0.00029041,3]
[385305752,1757755928564,-480.0,0.00029041,3]
[385305753,1757755928574,-490.76899068,0.00029041,3]
[385305754,1757755928583,-480.0,0.00029041,3]
[385305755,1757755928592,-531.61,0.00029041,3]
[385305756,1757755928602,-576.19,0.00029041,3]
[385305757,1757755928611,-480.0,0.00029041,3]
[385305758,1757755928620,-489.71,0.00029041,3]
[385305759,1757755928630,-1700.77,0.00029041,3]
[385305760,1757755928639,-480.0,0.00029041,3]
[385305761,1757755928648,-683.52,0.00029041,3]
[385305762,1757755928658,-532.68,0.00029041,3]
[385305763,1757755928667,-877.42,0.00029041,3]
[385305764,1757755928678,-2036.55,0.00029041,3]
[385305765,1757755928687,-480.0,0.00029041,3]
[385305766,1757755928698,-675.8,0.00029041,3]
[385305767,1757755928707,-1092.94,0.00029041,3]
[385305768,1757755928718,-864.33,0.00029041,3]
[385305769,1757755928728,-480.0,0.00029041,3]
[385305770,1757755928738,-4342.69410814,0.00029041,3]
[385305771,1757755928996,-621.18127565,0.00029041,3]
[385305772,1757755929125,-151.0,0.00023093,7]
[385305773,1757755929135,-151.0,0.00023093,7]
[385305774,1757755929144,-151.0,0.00023093,7]
[385305775,1757755929153,-171.08443816,0.00023093,7]
[385305776,1757755929165,-72.53695984,0.00023093,7]
[385305777,1757755929174,-222.601905,0.00023093,7]
[385305778,1757755929183,-370.09916826,0.00026301,3]
[385305779,1757755929194,-603.03,0.00027671,3]
[385305780,1757755929204,-603.03,0.00027945,3]
[385305781,1757755929213,-603.03,0.00028219,3]
[385305782,1757755929223,-603.03,0.00028493,3]
[385305783,1757755929233,-603.03,0.00028767,3]
[385305784,1757755929241,-1308.3119669,0.00029041,3]
[385305785,1757755929251,-1028.72264931,0.00029041,3]
[385305786,1757755929259,-480.0,0.00029041,3]
[385305787,1757755929271,-1623.88,0.00029041,3]
[385305788,1757755929279,-480.0,0.00029041,3]
[385305789,1757755929287,-1080.81,0.00029041,3]
[385305790,1757755929297,-480.0,0.00029041,3]
[385305791,1757755929306,-489.21318306,0.00029041,3]
[385305792,1757755929315,-480.0,0.00029041,3]
[385305793,1757755929324,-200.35491898,0.00029041,3]
[385305794,1757755929334,-586.32,0.00029041,3]
[385305795,1757755929343,-866.22,0.00029041,3]
[385305796,1757755929352,-585.1,0.00029041,3]
[385305797,1757755929361,-4460.51,0.00029041,3]
[385305798,1757755929371,-774.68,0.00029041,3]
[385305799,1757755929380,-480.0,0.00029041,3]
[385305800,1757755929388,-597.16,0.00029041,3]
[385305801,1757755929397,-7532.96832127,0.00029041,3]
[385305802,1757755929866,177.306304,0.0002287,120]
[385305803,1757755957133,300.0,0.00027397,120]
[385305804,1757756225178,165.297171,0.00027397,120]
[385305805,1757756263365,300.0,0.00027397,120]
[385305807,1757756569715,411.94395249,0.00027397,120]
[385305832,1757757032278,-10587.83715118,0.00018729,2]
[385305835,1757757032288,-2255.47763048,0.000199,2]
[385305836,1757757032299,-2255.47763024,0.00021149,2]
[385305838,1757757032308,-2255.47763024,0.00022398,2]
[385305840,1757757032318,-165.62516024,0.00022399,2]
[385305842,1757757032327,-34712.40688341,0.0002244,2]
[385305908,1757757045589,-165287.59311659,0.0002244,2]
[385305909,1757757045599,-370.7321335,0.00022499,2]
[385305910,1757757045608,-20166.68,0.000225,7]
[385305911,1757757045618,-2128.54,0.000225,7]
[385305912,1757757045628,-177.306304,0.0002287,2]
[385305913,1757757045638,-38667.56708434,0.00022888,2]
[385305914,1757757045648,-600.0,0.00022888,20]
[385305915,1757757045659,-500.0,0.00023287,2]
[385305916,1757757045668,-200000.0,0.0002344,2]
[385305917,1757757045678,-2255.47763024,0.00023647,2]
[385305918,1757757045688,-2000.0,0.00023936,2]
[385305919,1757757045698,-2000.0,0.00023936,2]
[385305920,1757757045708,-2000.0,0.00023936,2]
[385305921,1757757045718,-2000.0,0.00023936,2]
[385305922,1757757045728,-2000.0,0.00023936,2]
[385305923,1757757045738,-2000.0,0.00023936,2]
[385305924,1757757045749,-2000.0,0.00023936,2]
[385305925,1757757045758,-2000.0,0.00023936,2]
[385305926,1757757045768,-2000.0,0.00023936,2]
[385305927,1757757045781,-2000.0,0.00023936,2]
[385305928,1757757045791,-2000.0,0.00023936,2]
[385305929,1757757045800,-2000.0,0.00023936,2]
[385305930,1757757045810,-2000.0,0.00023936,2]
[385305931,1757757045820,-2000.0,0.00023936,2]
[385305932,1757757045830,-173.355,0.00023981,5]
[385305933,1757757045840,-233.1568031,0.00024,7]
[385305934,1757757045850,-188779.38859253,0.0002434,2]
[385305935,1757757045860,-694.47,0.000244,7]
[385305936,1757757045870,-448062.6,0.0002444,2]
[385305937,1757757045879,-200000.0,0.0002444,2]
[385305938,1757757045889,-767.1,0.000245,7]
[385305939,1757757045899,-233.1568031,0.00024657,3]
[385305940,1757757045909,-480.0,0.00024657,3]
[385305941,1757757045919,-227.0255565,0.00024657,3]
[385305942,1757757045928,-480.0,0.00024657,3]
[385305943,1757757045938,-480.0,0.00024657,3]
[385305944,1757757045948,-480.0,0.00024657,3]
[385305945,1757757045958,-480.0,0.00024657,3]
[385305946,1757757045967,-330.9737568,0.00024657,3]
[385305947,1757757045977,-480.0,0.00024657,3]
[385305948,1757757045987,-480.0,0.00024657,3]
[385305949,1757757045997,-480.0,0.00024657,3]
[385305950,1757757046006,-480.0,0.00024657,3]
[385305951,1757757046016,-480.0,0.00024657,3]
[385305952,1757757046025,-480.0,0.00024657,3]
[385305953,1757757046034,-480.0,0.00024657,3]
[385305954,1757757046043,-480.0,0.00024657,3]
[385305955,1757757046052,-480.0,0.00024657,3]
[385305956,1757757046061,-480.0,0.00024657,3]
[385305957,1757757046070,-480.0,0.00024657,3]
[385305958,1757757046079,-480.0,0.00024657,3]
[385305959,1757757046089,-480.0,0.00024657,3]
[385305960,1757757046098,-480.0,0.00024657,3]
[385305961,1757757046107,-480.0,0.00024657,3]
[385305962,1757757046116,-619.41391929,0.00024657,3]
[385305963,1757757046126,-480.0,0.00024657,3]
[385305964,1757757046136,-480.0,0.00024657,3]
[385305965,1757757046145,-480.0,0.00024657,3]
[385305966,1757757046154,-480.0,0.00024657,3]
[385305967,1757757046163,-480.0,0.00024657,3]
[385305968,1757757046172,-480.0,0.00024657,3]
[385305969,1757757046181,-480.0,0.00024657,3]
[385305970,1757757046191,-480.0,0.00024657,3]
[385305971,1757757046201,-480.0,0.00024657,3]
[385305972,1757757046210,-480.0,0.00024657,3]
[385305973,1757757046219,-480.0,0.00024657,3]
[385305974,1757757046229,-480.0,0.00024657,3]
[385305975,1757757046238,-1000.0,0.00024657,3]
[385305976,1757757046247,-480.0,0.00024657,3]
[385305977,1757757046256,-480.0,0.00024657,3]
[385305978,1757757046266,-480.0,0.00024657,3]
[385305979,1757757046275,-480.0,0.00024657,3]
[385305980,1757757046284,-480.0,0.00024657,3]
[385305981,1757757046294,-480.0,0.00024657,3]
[385305982,1757757046303,-480.0,0.00024657,3]
[385305983,1757757046312,-485.98,0.00024657,3]
[385305984,1757757046322,-480.0,0.00024657,3]
[385305985,1757757046331,-509.30266204,0.00024657,3]
[385305986,1757757046340,-540.26709731,0.00024657,3]
[385305987,1757757046351,-480.0,0.00024657,3]
[385305988,1757757046360,-480.0,0.00024657,3]
[385305989,1757757046369,-480.0,0.00024657,3]
[385305990,1757757046379,-480.0,0.00024657,3]
[385305991,1757757046388,-480.0,0.00024657,3]
[385305992,1757757046398,-168.10152315,0.00024657,3]
[385305993,1757757046407,-480.0,0.00024657,3]
[385305994,1757757046416,-480.0,0.00024657,3]
[385305995,1757757046425,-446.25845178,0.00024657,3]
[385305996,1757757046434,-480.0,0.00024657,3]
[385305997,1757757046445,-480.0,0.00024657,3]
[385305998,1757757046454,-1251.11,0.00024657,3]
[385305999,1757757046463,-480.0,0.00024657,3]
[385306000,1757757046473,-480.0,0.00024657,3]
[385306001,1757757046482,-480.0,0.00024657,3]
[385306002,1757757046491,-480.0,0.00024657,3]
[385306003,1757757046501,-480.0,0.00024657,3]
[385306004,1757757046510,-480.0,0.00024657,3]
[385306005,1757757046519,-480.0,0.00024657,3]
[385306006,1757757046528,-480.0,0.00024657,3]
[385306007,1757757046538,-480.0,0.00024657,3]
[385306008,1757757046547,-480.0,0.00024657,3]
[385306009,1757757046557,-480.0,0.00024657,3]
[385306010,1757757046568,-480.0,0.00024657,3]
[385306011,1757757046577,-480.0,0.00024657,3]
[385306012,1757757046586,-473.19205999,0.00024657,3]
[385306013,1757757046595,-480.0,0.00024657,3]
[385306014,1757757046605,-480.0,0.00024657,3]
[385306015,1757757046614,-480.0,0.00024657,3]
[385306016,1757757046623,-480.0,0.00024657,3]
[385306017,1757757046632,-480.0,0.00024657,3]
[385306018,1757757046641,-480.0,0.00024657,3]
[385306019,1757757046651,-480.0,0.00024657,3]
[385306020,1757757046660,-480.0,0.00024657,3]
[385306021,1757757046669,-477.28774497,0.00024657,3]
[385306022,1757757046678,-414.53957591,0.00024657,3]
[385306023,1757757046688,-480.0,0.00024657,3]
[385306024,1757757046697,-480.0,0.00024657,3]
[385306025,1757757046706,-480.0,0.00024657,3]
[385306026,1757757046715,-577.69535804,0.00024657,3]
[385306027,1757757046724,-480.0,0.00024657,3]
[385306028,1757757046878,-164.96653716,0.00024657,3]
[385306029,1757757046887,-480.0,0.00024657,3]
[385306030,1757757046897,-480.0,0.00024657,3]
[385306031,1757757046906,-117.37930351,0.00024657,3]